Cogmind - Beta 11 X8 @@@ ROGUE MODE // 2021.11.27 @ 17:35:06 Player: Runia Result: Destroyed by as-70339 with Assembled Heavy Rifle Performance ------------- Evolutions (0) 0 Regions Visited (2) 400 Robots Destroyed (26) 130 Value Destroyed (553) 553 Prototype IDs (2) 40 Alien Tech Used (0) 0 Bonus (0) 0 TOTAL SCORE: 1123 Bonus ------- None Cogmind --------- Core Integrity 0/250 Matter 153/300 Energy 100/100 System Corruption 4% Temperature Cool (0) Movement Treading (320) Ox2 Location -10/Mines Parts ------- > --- POWER (1) -------- (None) > --- PROPULSION (2) --- Light Treads > --- UTILITY (2) ------ Cooling System High-capacity Storage Unit > --- WEAPON (2) ------- Particle Cannon > --- INVENTORY (20) --- Cooling System Cooling System Cooling System Hacking Suite Medium Laser Particle Cannon Particle Cannon Particle Cannon Assault Rifle Assault Rifle Light Assault Rifle Light Assault Rifle Light Assault Rifle Peak State ------------ > --- POWER ------------ Light Nuclear Core > --- PROPULSION ------- Light Treads Light Treads > --- UTILITY ---------- Cooling System High-capacity Storage Unit > --- WEAPON ----------- Particle Cannon Assault Rifle > --- INVENTORY -------- Cooling System Cooling System Cooling System Hacking Suite Medium Laser Particle Cannon Particle Cannon Particle Cannon Assault Rifle Light Assault Rifle Light Assault Rifle Light Assault Rifle Grenade Launcher [Rating: 13] Favorites ----------- Power Light Ion Engine Engine Light Ion Engine Power Core Light Nuclear Core Propulsion Light Treads Treads Light Treads Leg Aluminum Leg Utility Cooling System Device Cooling System Storage High-capacity Storage Unit Weapon Assault Rifle Energy Gun Medium Laser Energy Cannon Particle Cannon Ballistic Gun Assault Rifle Launcher Grenade Launcher Build | -11 -10 -10 ------- Run | Scr Mat Min Slots Evolved . | . . . Power . | . . . Propulsion . | . . . Utility . | . . . Weapon . | . . . Parts Attached 17 | 2 12 3 Power 2 | . 2 . Engine 1 | . 1 . Core 1 | . 1 . Reactor . | . . . Propulsion 3 | 2 1 . Treads 3 | 2 1 . Leg . | . . . Wheel . | . . . Hover . | . . . Flight . | . . . Utility 4 | . 4 . Device 2 | . 2 . Storage 2 | . 2 . Processor . | . . . Hackware . | . . . Protection . | . . . Artifact . | . . . Weapon 8 | . 5 3 Energy Gun 1 | . 1 . Energy Cannon 1 | . 1 . Ballistic Gun 2 | . 1 1 Ballistic Cannon . | . . . Launcher 4 | . 2 2 Special Weapon . | . . . Impact Weapon . | . . . Slashing Weapon . | . . . Piercing Weapon . | . . . Special Melee Weapon . | . . . Unidentified Prototypes . | . . . Parts Lost 6 | . 3 3 Power 3 | . 2 1 Propulsion 2 | . 1 1 Utility . | . . . Weapon 1 | . . 1 Highest Loss Streak 3 | . 1 3 Average Slot Usage (%) 97 | . 97 94 Engine 11 | . 11 . Core 2 | . 2 11 Treads 27 | . 28 25 Device 12 | . 12 14 Storage 14 | . 14 14 Energy Gun 4 | . 4 . Energy Cannon 9 | . 9 14 Ballistic Gun 13 | . 14 2 Naked Turns . | . . . Heaviest Build 53 | 12 53 53 Greatest Support 40 | 40 40 40 Greatest Overweight (x) 2 | . 1 2 Average Overweight (x) . | . . 1 Largest Inventory Capacity 20 | 8 20 20 Average Capacity 16 | 8 16 20 Most Carried 14 | 6 14 13 Average Carried 10 | 4 10 13 Final Capacity 20 | 8 20 20 Final Carried 13 | 2 13 13 Class Distribution -------------------- 100% | Mutant Dominant Class ---------------- Mutant | -10/Materials Mutant | -10/Mines Resources | -11 -10 -10 ----------- Run | Scr Mat Min Matter Collected 507 | 200 307 . Remotely . | . . . Salvage Created 801 | . 758 43 Parts 49 | . 43 6 Haulers Intercepted 1 | . 1 . Recyclers Shooed . | . . . Parts Field Recycled . | . . . Retrieved Matter . | . . . Parts Self-Destructed . | . . . Prevented . | . . . Kills | -11 -10 -10 ------- Run | Scr Mat Min Combat Hostiles Destroyed 33 | . 14 19 Guns 10 | . 10 . Cannons 3 | . 3 . AOE 20 | . 1 19 Classes Destroyed 9 | . 8 1 Worker 1 | . 1 . Builder 2 | . 2 . Hauler 1 | . 1 . Recycler 2 | . 2 . Operator 1 | . 1 . Watcher 2 | . 2 . Swarmer 6 | . 3 3 Grunt 11 | . 11 . Assembled 16 | . . 16 Best Kill Streak 19 | . 5 19 Combat Bots Only 19 | . 4 19 Max Kills in Single Turn 4 | . 2 4 Gunslinging . | . . . Exploded 4 | . 1 4 Melee . | . . . Uniques/NPCs Destroyed . | . . . Combat | -11 -10 -10 -------- Run | Scr Mat Min Damage Taken 1001 | . 595 406 Core 259 | . 168 91 Absorbed by Shields . | . . . Core Remaining (%) 100 | 100 . . Volleys Fired 68 | . 56 12 Largest 2 | . 2 1 Hottest 88 | . 88 30 Shots Fired 121 | . 109 12 Gun 84 | . 84 . Cannon 22 | . 22 . Launcher 15 | . 3 12 Special . | . . . Kinetic 53 | . 53 . Thermal 53 | . 53 . Explosive 15 | . 3 12 Electromagnetic . | . . . Robot Hit Streak 13 | . 13 3 Robot Miss Streak 4 | . 4 2 Penetration Max . | . . . Secondary Targets . | . . . Shots Hit Robots 76 | . 72 4 Core Hits 77 | . 37 40 Critical Kills . | . . . Critical Parts Destroyed 1 | . 1 . Critical Strikes 2 | . 2 . Burn 1 | . 1 . Destroy 1 | . 1 . Melee Attacks . | . . . Impact . | . . . Slashing . | . . . Piercing . | . . . Sneak Attacks . | . . . Combat Hostiles . | . . . Follow-up Attacks . | . . . Damage Inflicted 2282 | . 1258 1024 Guns 722 | . 722 . Cannons 323 | . 323 . Explosions 1237 | . 213 1024 Melee . | . . . Ramming . | . . . Kinetic 475 | . 475 . Thermal 570 | . 570 . Explosive 1237 | . 213 1024 Electromagnetic . | . . . Impact . | . . . Slashing . | . . . Piercing . | . . . Highest Corruption 4 | . 2 4 Average Corruption 2 | . 2 2 Corruption Purged . | . . . Effects 1 | . 1 . Message Errors 1 | . 1 . Overload Shots . | . . . Overflow Damage 40 | . . 40 Projectiles . | . . . Explosions 40 | . . 40 Melee . | . . . Knockbacks . | . . . Impact . | . . . Kinetic . | . . . Secondary . | . . . Self-Inflicted Damage 45 | . . 45 Shots 2 | . . 2 Rammed . | . . . Targets Rammed . | . . . Kicked . | . . . Crushed . | . . . Highest Temperature 102 | . 102 . Average Temperature 30 | . 30 . Received Heat Transfer 219 | . 219 . Siege Activations . | . . . Robots Corrupted . | . . . Combat Hostiles . | . . . Parts Fried . | . . . Impact Corruptions . | . . . Robots Melted . | . . . Combat Hostiles . | . . . Parts Melted 1 | . 1 . Heat Transferred 1406 | . 1406 . Parts Sabotaged . | . . . Parts Stolen . | . . . Parts Stripped . | . . . Power Chain Reactions . | . . . Missiles Intercepted . | . . . Alert | -11 -10 -10 ------- Run | Scr Mat Min Peak Influence 299 | . 299 148 Initial 63 | . . 63 Average 173 | . 176 139 Maximum Alert Level 1 | . 1 . Low Security (%) 61 | 100 59 100 Level 1 38 | . 40 . Level 2 . | . . . Level 3 . | . . . Level 4 . | . . . Level 5 . | . . . High Security . | . . . Max Security . | . . . Squads Dispatched 3 | . 3 . Investigation 2 | . 2 . Extermination . | . . . Reinforcement 1 | . 1 . Assault . | . . . Garrison . | . . . Intercept . | . . . Construction Impeded . | . . . Haulers Reinforced . | . . . Active Scanning Responses . | . . . Cargo Convoy Interrupts . | . . . Stealth | -11 -10 -10 --------- Run | Scr Mat Min Distress Signals 3 | . 3 . Communications Jammed . | . . . Distress Signals . | . . . Times Spotted 46 | . 23 23 Peak Tracking Total 13 | . 4 13 Tactical Retreats 1 | . 1 . Traps | -11 -10 -10 ------- Run | Scr Mat Min Traps Triggered 2 | . 2 . Indirectly . | . . . Trap Hack Attempts . | . . . Triggered . | . . . Disarmed . | . . . Reprogrammed . | . . . Reused . | . . . Traps Extracted . | . . . Installed . | . . . Triggered . | . . . Machines | -11 -10 -10 ---------- Run | Scr Mat Min Machines Disabled 2 | . 1 1 Max in Single Turn 1 | . 1 1 Machines Sabotaged . | . . . Garrisons Compromised . | . . . Overloaded Fab Kills . | . . . Hacking | -11 -10 -10 --------- Run | Scr Mat Min Machines Accessed 7 | . 7 . Terminals 5 | . 5 . Fabricators . | . . . Repair Stations . | . . . Recycling Units 2 | . 2 . Scanalyzers . | . . . Garrison Access . | . . . Total Hacks 16 | . 16 . Successful 10 | . 10 . Failed 6 | . 6 . Catastrophic 1 | . 1 . Database Lockouts . | . . . Manual 6 | . 6 . Terminals 14 | . 14 . Fabricators . | . . . Repair Stations . | . . . Recycling Units 2 | . 2 . Scanalyzers . | . . . Garrison Access . | . . . Terminal Hacks 8 | . 8 . Part Schematic 1 | . 1 . Prototype ID Bank 1 | . 1 . Terminal Index 1 | . 1 . Locate Traps 2 | . 2 . Zone Layout 3 | . 3 . Fabricator Hacks . | . . . Repair Station Hacks . | . . . Recycling Unit Hacks . | . . . Scanalyzer . | . . . Garrison Access Hacks . | . . . Unauthorized Hacks 2 | . 2 . Terminals . | . . . Fabricators . | . . . Repair Stations . | . . . Recycling Units 2 | . 2 . Tunnel 2 | . 2 . Scanalyzers . | . . . Garrison Access . | . . . Data Cores Recovered . | . . . Used . | . . . Hacking Detections 5 | . 5 . Full Trace Events . | . . . Feedback Events . | . . . Feedback Blocked . | . . . Robot Schematics Acquired . | . . . Robots Built . | . . . Authchips . | . . . Time . | . . . Total Robot Build Rating . | . . . Part Schematics Acquired 1 | . 1 . Parts Built . | . . . Authchips . | . . . Time . | . . . Total Part Build Rating . | . . . Parts Repaired . | . . . Time . | . . . Parts Recycled . | . . . Recycled Matter . | . . . Retrieved Matter . | . . . Retrieved Components . | . . . Parts Scanalyzed . | . . . Part Schematics Acquired . | . . . Parts Damaged . | . . . Bothacking | -11 -10 -10 ------------ Run | Scr Mat Min Used RIF Installer . | . . . Robots Hacked . | . . . Non-combat . | . . . Combat . | . . . Robot Hacks Applied . | . . . Relay Couplers Released . | . . . Fabnet Peak Effective % . | . . . Robots Rewired . | . . . Allies Hacked . | . . . Hacks Repelled . | . . . Allies | -11 -10 -10 -------- Run | Scr Mat Min Total Allies . | . . . Largest Group . | . . . Highest-Rated Group . | . . . Highest-Rated Ally . | . . . Total Orders . | . . . Ally Attacks . | . . . Total Damage . | . . . Kills . | . . . Allies Corrupted . | . . . Allies Melted . | . . . Intel | -11 -10 -10 ------- Run | Scr Mat Min Robot Analysis Total . | . . . Derelict Logs Recovered . | . . . Drone Launches . | . . . Drone Recoveries . | . . . Exploration | -11 -10 -10 ------------- Run | Scr Mat Min Turns Passed 1171 | 5 1117 49 Spaces Moved 433 | 1 424 8 Core . | . . . Treads 433 | 1 424 8 Legs . | . . . Wheels . | . . . Hover . | . . . Flight . | . . . Fastest Speed 160 | 160 160 240 Average Speed 212 | 160 211 260 Slowest Speed 320 | 160 240 320 Overloaded Moves . | . . . Propulsion Burnouts . | . . . Robots Hopped . | . . . Cave-ins Triggered . | . . . Exploration Rate (%) 29 | 2 79 7 Regions Visited 2 Branch Regions 1 Pre-discovered Areas 2 | . 2 . Known Exits Taken . | . . . Unknown Exits Taken 2 | 1 1 . Scrap Searched . | . . . Spaces Dug . | . . . Terrain Destroyed 74 | . 4 70 Melee . | . . . Projectile . | . . . AOE 74 | . 4 70 Terrain Rammed . | . . . Walls Destroyed . | . . . Machines Disabled . | . . . Actions | -11 -10 -10 --------- Run | Scr Mat Min Total 562 | 6 533 23 Wait 22 | . 22 . Move 431 | . 423 8 Hop . | . . . Pick Up 16 | . 16 . Fast Attach 1 | . 1 . Attach 5 | 2 3 . Detach . | . . . Swap 11 | . 8 3 Drop 8 | 4 4 . Fire 68 | . 56 12 Melee . | . . . Ram . | . . . Kick . | . . . Crush . | . . . Escape Stasis . | . . . Rewire . | . . . Trap . | . . . Miscellaneous . | . . . Route ------- -11/Scrapyard -10/Materials (discovered 3 exits: [*Mat x2] / [*Min]) -10/Mines History --------- Turn | Location | Event 6 | -11/Scrapyard | Discovered new exit (range 0) 6 | -11/Scrapyard | Entered Materials 313 | -10/Materials | Build established: Mutant 336 | -10/Materials | Core integrity fell below 50% 633 | -10/Materials | Discovered new exit (range 16) 875 | -10/Materials | Discovered new exit (range 11) 1099 | -10/Materials | Discovered new exit (range 9) 1123 | -10/Materials | Entered Mines 1141 | -10/Mines | Assembled infested the area 1153 | -10/Mines | Core integrity fell below 20% 1172 | -10/Mines | Destroyed by as-70339 with Assembled Heavy Rifle Last Messages --------------- 01154_ as-32576 destroyed. 01154_ as-59082 destroyed. 01154_ as-51790 destroyed. 01154_ as-47133 destroyed. 01156_ as-08220 destroyed. 01156_ as-74066 destroyed. 01156_ as-57686 destroyed. 01158_ The unstable cave ceiling collapses. 01158_ as-64289 destroyed. 01158_ as-41348 destroyed. 01160_ Lgt. Nuclear Core destroyed. 01160_ System corrupted by crushing effect (+2). 01160_ as-25227 destroyed. 01160_ Lgt. Treads destroyed. 01160_ Destroyed Lgt. Treads. 01160_ Destroyed Asb. Hover Unit. 01160_ as-47798 destroyed. 01171_ as-37412 destroyed. 01171_ as-08470 destroyed. 01171_ Grenade Launcher destroyed. Map ----- +----------------------------------------------------+ | ?????????????????????????????????? | | ?????????????????????????????????? | | ?????????????????????????????????? | | ?????????????????????????????????? | | ?????????????????????????????????? | | ?????????????????????????????????? | | ?????????????????????????????????? | | ?????????????????????????????????? | | ????????????????????????#????????? | | ???????????????????????? ## ????? | | ??????????????????????? =???? | | ?????????????????????? ???? | | ??????????????????????? ##??? | | ??????????????????????? % #??? | | ??????????????????????? #??? | | ???????????????????????? ###? | | ???????????????????????? #? | | ???????????????????????? #? | | ???????????????????????? a #? | | ???????????????????????? a #? | | ???????????????????????? #? | | ????????????????????????# a #?? | | ????????????????????????# #?? | | ????????????????????????# #?? | | ????????????????????????# #?? | | ????????????????????????#@ #?? | | ????????????????????????# #?? | | ????????????????????????# #? | | ????????????????????????# [ #? | | ??????????????????????? % #? | | ??????????????????????# [ = #? | | ??????????????????????# = #? | | ??????????????????????# * ##? | | ??????????????????????# # ###?? | | ??????????????????????#### #???? | | ????????????????????????? #???? | | ?????????????????????????#####???? | | ?????????????????????????????????? | | ?????????????????????????????????? | | ?????????????????????????????????? | | ?????????????????????????????????? | | ?????????????????????????????????? | | ?????????????????????????????????? | | ?????????????????????????????????? | | ?????????????????????????????????? | | ?????????????????????????????????? | | ?????????????????????????????????? | | ?????????????????????????????????? | | ?????????????????????????????????? | | ?????????????????????????????????? | +----------------------------------------------------+ Best States ------------- Heat Dissipation 47 Energy Generation 14 Energy Capacity 160 Matter Stores 300 Matter Capacity 300 Sight Range 16 Terrain Scan Density 10 Evasion (%) 40 Recoil Reduction 2 Item Schematics ----------------- Hcp. Storage Unit | -10/Materials | Hacked Robot Schematics ------------------ None Fabricated ------------ Nothing Alien Tech Used ----------------- None Achievements -------------- None Challenges ------------ None Game ------ Seed MatterMobileTriangulator Manual? 0 Play Time 00:06:38 Cumulative 516.6 hours Start 2021.11.27 @ 17:29:01 End 2021.11.27 @ 17:35:06 Sessions 1 Manual Loads 0 Difficulty Rogue Special Mode None Game No. 503 Rogue 503 Adventurer 0 Explorer 0 Win Type - Total 14 Types 9/1/3/1/0/0/0/0/0 Lore% 83 Gallery% 94 Achievement% 73 Wizard Run 0 Options --------- ASCII 0 Keyboard 0 Movement Mouse Keybinds 1 Fullscreen 2 Font 24/Smallcaps Map View 76x50 Tactical HUD 1 Map Filters NONE Filters NONE Steam 1 RUN: 51a1bc99-7d94-44e8-8384-3e365a4a565f